bitfinex-derivatives/quotes_ETHF0:USTF0_20241004
["timestamp","ask_amount","ask_price","bid_price","bid_amount"]
[1728037874565,3.2078,2376.9,2376.8,3.71083]
[1728037875764,3.2078,2376.9,2376.8,7.91803]
[1728037875965,3.2078,2376.9,2376.8,13.91803]
[1728037876161,3.2078,2377.4,2377.3,0.42075]
[1728037876360,3.2078,2377.4,2377.3,3.71075]
[1728037878465,0.4018,2377.6,2377.3,3.29]
[1728037878671,0.4018,2377.6,2377.5,0.42071]
[1728037878869,0.3937,2377.7,2377.5,3.29]
[1728037879068,3.2078,2377.8,2377.5,3.29]
[1728037879264,3.2078,2377.8,2377.5,3.6922]
[1728037879574,3.2078,2377.8,2377.7,0.42067]
[1728037879872,3.2078,2377.8,2377.4,0.801]
[1728037880065,3.2078,2377.8,2377.1,0.098]
[1728037880066,3.2078,2377.5,2377.1,0.098]
[1728037880267,0.7892,2377.4,2377.0,1.2306]
[1728037880471,3.2078,2377.2,2377.1,0.42077]
[1728037882278,3.2078,2377.5,2377.4,0.42073]
[1728037882977,3.2078,2377.5,2377.4,0.81363]
[1728037883570,3.2078,2377.5,2377.4,5.02003]
[1728037884580,3.6195,2377.8,2377.4,4.5993]
[1728037884774,3.6195,2377.8,2377.6,3.29]
[1728037885082,3.6195,2377.8,2377.7,0.42067]
[1728037885783,4.04017,2377.8,2377.6,3.71069]
[1728037885988,7.8251,2377.8,2377.3,0.42075]
[1728037886293,3.62852,2377.5,2377.3,0.42075]
[1728037886476,0.8012,2377.4,2377.3,0.42075]
[1728037887372,1.22193,2377.4,2377.2,0.42075]
[1728037887679,1.22193,2377.4,2377.0,4.1232]
[1728037887680,0.8012,2377.4,2377.3,0.42075]
[1728037890473,4.009,2377.4,2377.3,0.42075]
[1728037898784,3.62849,2377.7,2377.3,4.2064]
[1728037899085,0.4078,2377.6,2377.5,0.4207]
[1728037900083,0.098,2378.0,2377.9,0.42064]
[1728037900277,0.4078,2378.0,2377.9,3.71064]
[1728037900781,0.4078,2378.0,2377.9,3.29]
[1728037900989,0.82842,2378.0,2377.9,3.71064]
[1728037901183,0.4078,2378.0,2377.9,3.71064]
[1728037901381,3.62841,2378.1,2377.9,3.70064]
[1728037901681,3.6284,2378.1,2378.0,0.81022]
[1728037902385,3.62841,2378.1,2377.9,3.70062]
[1728037902582,0.3951,2378.0,2377.9,3.70062]
[1728037905984,0.3951,2378.0,2377.9,4.11332]
[1728037908796,0.3951,2378.0,2377.9,3.70064]
[1728037915995,0.81572,2378.0,2377.9,3.28]
[1728037916197,1.24132,2378.0,2377.9,3.28]
[1728037916890,1.24132,2378.0,2377.8,0.81745]
[1728037916891,0.42064,2377.9,2377.8,0.81745]
[1728037918394,1.24133,2378.0,2377.9,0.42064]
[1728037918598,1.24133,2378.0,2377.9,3.70064]
[1728037919499,0.8207,2378.0,2377.9,3.70064]
[1728037920698,1.24132,2378.0,2377.9,3.70064]
[1728037921001,0.8207,2378.0,2377.9,3.70064]
[1728037921800,0.8207,2378.0,2377.9,3.28]
[1728037921991,0.8207,2378.0,2377.8,0.3968]
[1728037922305,0.42067,2377.7,2377.6,0.42068]
[1728037922608,0.4207,2377.6,2377.5,0.42071]
[1728037922798,0.4179,2377.6,2377.5,0.42071]
[1728037922995,0.8083,2377.6,2377.5,0.42071]
[1728037923903,3.2078,2377.7,2377.6,0.42069]
[1728037924205,3.2078,2377.7,2377.6,3.70069]
[1728037924902,3.2078,2377.7,2377.6,3.28]
[1728037925199,3.2078,2377.7,2377.3,1.2288]
[1728037925200,0.42069,2377.6,2377.5,3.28]
[1728037925402,0.7994,2377.6,2377.3,4.92953]
[1728037925604,3.2078,2377.4,2377.3,4.11503]
[1728037928808,3.2078,2377.4,2377.3,8.32143]
[1728037930401,0.4229,2377.7,2377.3,13.9007]
[1728037930615,3.2078,2377.8,2377.7,0.42067]
[1728037930913,3.2078,2377.8,2377.7,3.70067]
[1728037931614,3.2078,2377.8,2377.5,3.28]
[1728037931816,0.4207,2377.6,2377.4,3.70072]
[1728037932004,3.6319,2377.5,2377.4,3.70072]
[1728037932201,4.05261,2377.5,2377.4,3.28]
[1728037932400,4.05261,2377.5,2377.2,0.8448]
[1728037932401,0.42075,2377.3,2377.2,3.28]
[1728037932611,0.42074,2377.4,2377.2,3.70076]
[1728037932809,0.84235,2377.3,2377.2,3.28]
[1728037933000,1.24805,2377.3,2377.2,3.28]
[1728037933207,0.8273,2377.3,2377.2,3.70076]
[1728037935307,1.24805,2377.3,2377.2,3.28]
[1728037936009,1.24805,2377.3,2377.2,3.70076]
[1728037936216,0.8273,2377.3,2377.2,3.70076]
[1728037937317,1.24805,2377.3,2377.2,3.70076]
[1728037937511,0.8273,2377.3,2377.2,3.70076]
[1728037938312,1.24805,2377.3,2377.2,3.28]
[1728037938513,0.8273,2377.3,2377.2,3.70076]
[1728037944318,0.4057,2377.3,2377.2,3.70076]
[1728037946307,3.2078,2377.4,2377.2,3.28]
[1728037946508,3.2078,2377.4,2377.3,0.42075]
[1728037946708,3.2078,2377.4,2377.3,1.67625]
[1728037946908,3.2078,2377.4,2377.3,1.2555]
[1728037947917,3.2078,2377.4,2376.8,4.44260753]
[1728037948114,4.25965,2377.4,2377.1,3.28]
[1728037948321,0.42077,2377.2,2377.0,3.28]
[1728037948713,0.4037,2377.1,2377.0,3.28]
[1728037949312,0.4037,2377.1,2377.0,3.7008]
[1728037949714,0.4037,2377.1,2377.0,3.28]
[1728037956529,3.2078,2377.2,2377.0,3.7008]
[1728037956722,3.62856,2377.2,2377.0,3.28]
[1728037956927,3.2078,2377.2,2377.0,3.28]
[1728037957619,3.2078,2377.2,2377.1,1.52]
[1728037960130,4.01666,2377.3,2377.1,1.52]
[1728037960522,4.01666,2377.3,2377.2,0.4103]
[1728037965647,3.5959,2377.3,2377.2,0.4103]
[1728037965844,3.5959,2377.3,2377.2,0.8303]
[1728037966147,0.84478,2377.5,2377.2,1.25102]
[1728037966353,0.84478,2377.5,2377.3,1.9141]
[1728037970252,0.42068,2377.5,2377.3,1.9141]
[1728037970552,4.43986,2377.6,2377.3,2.3348]
[1728037970850,4.43986,2377.6,2377.5,1.52]
[1728037971254,3.2078,2377.6,2377.5,1.52]
[1728037971458,3.2078,2377.9,2377.5,1.52]
[1728037971653,3.2078,2377.9,2377.7,1.94062]
[1728037971856,0.3959,2378.2,2377.8,0.4216]
[1728037971857,3.2078,2378.2,2377.8,0.4216]
[1728037972062,3.62835,2378.2,2378.1,1.52]
[1728037974155,3.62835,2378.2,2378.0,0.4164]
[1728037974156,0.42056,2378.1,2378.0,0.4164]
[1728037974359,0.42056,2378.1,2378.0,1.9364]
[1728037976454,0.42056,2378.1,2378.0,1.52]
[1728037976655,1.23246,2378.1,2378.0,1.52]
[1728037978266,4.44026,2378.1,2378.0,1.52]
[1728037980169,1.23246,2378.1,2378.0,1.52]
[1728037981561,5.0167,2378.1,2377.7,1.9469]
[1728037981865,0.42061,2377.8,2377.7,0.4269]
[1728037982064,0.42063,2377.7,2377.6,1.9183]
[1728037982264,1.23653,2377.7,2377.6,1.9183]
[1728037982765,0.8159,2377.7,2377.6,2.33895]
[1728037982970,0.4201,2377.7,2377.6,2.33895]
[1728037983266,0.84073,2377.7,2377.6,2.33895]
[1728037983564,0.42062,2377.8,2377.6,2.33895]
[1728037983769,0.80862,2377.8,2377.7,1.52]
[1728037986760,4.01642,2377.8,2377.7,1.52]
[1728037986960,0.80862,2377.8,2377.7,1.52]
[1728037987161,4.01642,2377.8,2377.7,1.52]
[1728037989466,0.80862,2377.8,2377.7,1.52]
[1728037989667,4.01642,2377.8,2377.7,1.52]
[1728037994275,0.80862,2377.8,2377.7,1.52]
[1728037997970,0.80862,2377.8,2377.7,1.94063]
[1728037998369,0.80862,2377.8,2377.7,1.52]
[1728037999568,0.80862,2377.8,2377.7,1.94063]
[1728038002178,0.80862,2377.8,2377.7,1.52]
[1728038004486,0.80862,2377.8,2377.4,0.3988]
[1728038004487,0.42063,2377.7,2377.6,1.52]
[1728038004777,0.82073,2377.7,2377.6,1.52]
[1728038006483,0.82073,2377.7,2377.6,2.3556]
[1728038011073,0.82073,2377.7,2377.6,1.52]
[1728038014785,4.02853,2377.7,2377.6,1.52]
[1728038016578,3.2078,2377.7,2377.6,1.52]
[1728038016779,0.42062,2377.8,2377.6,2.36475]
[1728038017079,4.6878,2378.0,2377.8,0.42061]
[1728038017080,3.2078,2378.0,2377.8,0.42061]
[1728038017280,3.62838,2378.0,2377.9,2.3564]
[1728038019588,9.98488,2378.0,2377.6,0.4241]
[1728038019882,3.62843,2377.7,2377.6,0.4241]
[1728038025095,0.42063,2377.7,2377.6,0.4241]
[1728038028488,3.62843,2377.8,2377.6,0.84475]
[1728038028690,0.42063,2377.7,2377.6,0.4241]
[1728038028882,0.42063,2377.7,2377.6,1.9441]
[1728038030484,3.2078,2377.8,2377.6,1.9441]
[1728038030685,3.62842,2377.8,2377.6,2.36473]
[1728038032083,0.42062,2377.8,2377.6,2.36473]
[1728038034788,3.6219,2378.0,2377.6,1.9441]
[1728038035082,0.42063,2377.7,2377.6,1.9441]
[1728038035287,4.67337,2378.0,2377.6,1.9441]
[1728038035481,0.42062,2377.8,2377.6,2.36474]
[1728038037895,0.42061,2377.9,2377.6,2.36474]
[1728038038092,0.42061,2377.9,2377.8,1.52]
[1728038038486,0.42061,2377.9,2377.8,1.9343]
[1728038040101,0.42061,2377.9,2377.8,0.4143]
[1728038040591,0.42061,2377.9,2377.6,2.36474]
[1728038040592,0.42063,2377.7,2377.6,0.4241]
[1728038040798,0.42063,2377.7,2377.6,0.84475]
[1728038040997,0.42063,2377.7,2377.6,2.36475]
[1728038041896,0.4206,2377.9,2377.7,0.42062]
[1728038042194,4.04249,2378.0,2377.8,2.33451]
[1728038042495,4.04249,2378.0,2377.9,1.9479]
[1728038042799,3.6219,2378.0,2377.9,1.9479]
[1728038043191,4.04248,2378.0,2377.9,1.9479]
[1728038045200,3.2078,2378.0,2377.9,2.3685]
[1728038045396,3.2078,2378.3,2378.1,0.42056]
[1728038045600,0.8213,2378.6,2378.2,0.839]
[1728038045903,0.4164,2378.6,2378.5,0.42049]
[1728038046097,0.42049,2378.5,2378.4,1.52]
[1728038047790,0.4164,2378.6,2378.3,1.52]
[1728038047996,0.42056,2378.1,2378.0,0.4275]
[1728038048408,0.42058,2378.0,2377.9,2.3266]
[1728038048705,1.44547,2378.0,2377.7,1.52]
[1728038048899,0.42063,2377.8,2377.7,1.52]
[1728038050006,0.4099,2377.9,2377.7,1.52]
[1728038050007,0.8305,2377.9,2377.7,1.52]
[1728038050306,0.8305,2377.9,2377.6,1.65475]
[1728038050307,0.8305,2377.9,2377.8,1.52]
[1728038050504,0.42057,2378.1,2377.9,0.42059]
[1728038050804,0.42055,2378.2,2378.0,1.2358]
[1728038050998,0.42054,2378.2,2378.1,1.52]
[1728038051498,0.42054,2378.2,2378.0,4.5158]
[1728038051706,0.42056,2378.1,2378.0,4.5158]
[1728038054206,0.81714,2378.3,2378.0,4.93637]
[1728038054506,0.42054,2378.3,2378.1,3.28]
[1728038054708,0.42052,2378.4,2378.1,3.70055]
[1728038054900,0.42052,2378.4,2378.3,3.28]
[1728038055398,0.4082,2378.5,2378.3,3.28]
[1728038055399,0.8287,2378.5,2378.3,3.28]
[1728038055602,0.42051,2378.4,2378.3,3.28]
[1728038056712,0.42051,2378.4,2378.2,3.70054]
[1728038057106,0.42051,2378.4,2378.3,0.4228]
[1728038057810,3.62831,2378.4,2378.3,0.4228]
[1728038057997,0.42053,2378.3,2378.2,3.28]
[1728038058603,3.2078,2378.4,2378.2,3.28]
[1728038058798,3.2078,2378.4,2378.2,3.70053]
[1728038059009,3.62831,2378.4,2378.2,3.70053]
[1728038060711,0.42051,2378.4,2378.2,3.70053]
[1728038061111,0.42051,2378.4,2378.2,3.28]
[1728038061311,0.42053,2378.3,2378.2,3.28]
[1728038061507,0.42053,2378.3,2378.1,4.12336]
[1728038061818,3.62831,2378.4,2378.2,0.42054]
[1728038062111,0.42051,2378.4,2378.2,0.42054]
[1728038063916,0.4205,2378.5,2378.3,3.28]
[1728038064216,0.4205,2378.5,2378.4,0.8388]
[1728038064512,0.4205,2378.5,2378.4,1.2413]
[1728038066613,0.42049,2378.5,2378.4,1.66181]
[1728038070812,0.4112,2378.6,2378.4,1.66181]
[1728038071119,0.42049,2378.5,2378.4,1.2413]
[1728038071720,0.42049,2378.5,2378.4,2.7513]
[1728038073813,0.42049,2378.5,2378.4,3.17181]
[1728038074621,0.42049,2378.5,2378.4,2.7513]
[1728038075008,0.4112,2378.6,2378.4,2.7513]
[1728038075312,0.4112,2378.6,2378.5,0.42049]
[1728038075512,3.2078,2378.8,2378.4,2.7513]
[1728038075513,3.2078,2378.8,2378.6,0.42046]
[1728038075712,0.84335,2378.8,2378.7,1.9248]
[1728038084421,0.42041,2379.0,2378.9,0.42042]
[1728038084631,0.4204,2379.0,2378.9,1.51]
[1728038087633,0.4204,2379.0,2378.9,1.93042]
[1728038087826,0.4204,2379.0,2378.9,1.51]
[1728038088831,0.4204,2379.0,2378.9,1.93042]
[1728038093121,0.4204,2379.0,2378.8,0.8303]
[1728038093122,0.42042,2378.9,2378.8,1.93044]
[1728038093332,1.22922,2378.9,2378.8,1.93044]
[1728038093531,1.22922,2378.9,2378.8,1.51]
[1728038093730,1.22922,2378.9,2378.8,1.93044]
[1728038095137,0.8088,2378.9,2378.8,1.93044]
[1728038095833,1.22922,2378.9,2378.8,1.93044]
[1728038097030,0.8088,2378.9,2378.8,1.93044]
[1728038100437,1.05098,2379.1,2378.9,0.42041]
[1728038100438,0.42039,2379.1,2378.9,0.42041]
[1728038100738,3.6117,2379.2,2378.9,1.93041]
[1728038100739,0.3993,2379.0,2378.9,1.93041]
[1728038105841,0.42039,2379.1,2379.0,0.4204]
[1728038106039,0.42039,2379.1,2379.0,0.8581]
[1728038106340,0.42039,2379.1,2379.0,1.2647]
[1728038106936,0.42039,2379.1,2379.0,0.4066]
[1728038107131,0.42043,2378.9,2378.8,1.51]
[1728038107732,2.56097,2379.1,2378.7,2.7736]
[1728038107932,2.56097,2379.1,2378.7,1.51]
[1728038107933,0.84834,2378.8,2378.7,1.51]
[1728038108133,1.05115,2378.7,2378.3,0.42052]
[1728038108348,3.2078,2378.5,2378.2,1.51]
[1728038108936,3.2078,2378.5,2378.0,4.14917]
[1728038108937,0.42055,2378.2,2378.0,4.14917]
[1728038109139,0.42055,2378.2,2378.1,1.51]
[1728038109333,0.4112,2378.3,2378.0,5.1406]
[1728038109534,0.4112,2378.3,2378.0,1.9328]
[1728038109535,0.4279,2378.1,2378.0,1.9328]
[1728038110544,0.83173,2378.3,2378.1,0.42056]
[1728038110837,0.42051,2378.4,2378.2,1.51]
[1728038111030,3.2078,2378.5,2378.3,2.3049]
[1728038111031,4.0466,2378.5,2378.3,2.3049]
[1728038111235,4.0466,2378.5,2378.3,2.7217]
[1728038111743,3.6261,2378.5,2378.3,3.14223]
[1728038112339,0.4183,2378.5,2378.4,0.42051]
[1728038113244,0.4183,2378.5,2378.3,2.7217]
[1728038113437,0.4183,2378.5,2378.3,3.14222]
[1728038113843,0.82459,2378.6,2378.4,0.4205]
[1728038114044,0.42049,2378.6,2378.5,1.51]
[1728038114342,0.42047,2378.6,2378.5,1.51]
[1728038114747,0.84396,2378.7,2378.5,1.51]
[1728038114944,0.4235,2378.7,2378.6,0.42047]
[1728038115244,4.03704,2378.8,2378.6,0.4147]
[1728038115444,4.46054,2378.8,2378.7,1.51]
[1728038115850,4.0401,2378.8,2378.6,1.9247]
[1728038116045,0.42046,2378.7,2378.6,1.9247]
[1728038116646,4.46055,2378.8,2378.6,1.9247]
[1728038117549,4.46055,2378.8,2378.6,2.34517]
[1728038117845,4.05175,2378.8,2378.6,2.34517]
[1728038118447,3.6313,2378.8,2378.7,1.51]
[1728038119450,4.05174,2378.8,2378.7,1.51]
[1728038121341,3.6313,2378.8,2378.7,1.51]
[1728038121646,4.05174,2378.8,2378.7,1.51]
[1728038123248,3.6313,2378.8,2378.3,4.0324]
[1728038123449,0.42047,2378.6,2378.5,1.51]
[1728038123854,0.83037,2378.6,2378.5,1.51]
[1728038125749,0.4099,2378.6,2378.5,1.51]
[1728038126257,0.42047,2378.7,2378.5,1.51]
[1728038126460,0.42047,2378.7,2378.6,1.51]
[1728038131570,0.42047,2378.7,2378.3,0.8246]
[1728038131571,0.42051,2378.4,2378.3,0.8246]
[1728038131865,0.42054,2378.2,2378.1,0.4006]
[1728038132068,0.3938,2378.3,2378.1,1.9106]
[1728038132370,0.81434,2378.3,2378.1,2.33116]
[1728038133166,5.116,2378.6,2378.2,0.42054]
[1728038133167,0.42051,2378.4,2378.2,0.42054]
[1728038133361,0.42051,2378.4,2378.3,1.9383]
[1728038136169,3.3058,2378.9,2378.3,6.1431]
[1728038136374,0.42046,2378.7,2378.5,0.42049]
[1728038136576,0.83875,2378.8,2378.7,1.51]
[1728038137373,0.83874,2378.8,2378.7,1.9368]
[1728038139277,0.4183,2378.8,2378.7,2.78086]
[1728038139578,0.4183,2378.8,2378.7,2.3604]
[1728038139773,0.83874,2378.8,2378.7,2.3604]
[1728038142476,2.97942,2378.8,2378.4,2.3386]
[1728038142682,0.42049,2378.5,2378.4,2.75731]
[1728038142882,0.42049,2378.5,2378.4,2.3368]
[1728038143775,0.42049,2378.5,2378.4,2.75731]
[1728038144080,1.44706,2378.7,2378.4,2.75731]
[1728038144383,0.42048,2378.6,2378.4,2.75731]
[1728038144877,0.4229,2378.5,2378.4,2.75731]
[1728038146579,3.623,2378.9,2378.4,2.3368]
[1728038146781,0.4229,2378.8,2378.4,0.8268]
[1728038146980,0.84334,2378.8,2378.7,1.51]
[1728038147377,0.84334,2378.8,2378.7,2.3192]
[1728038149583,0.84334,2378.8,2378.7,2.73966]
[1728038152385,0.84334,2378.8,2378.7,2.3192]
[1728038153582,0.84334,2378.8,2378.7,2.73966]
[1728038155489,0.84334,2378.8,2378.7,2.3192]
[1728038155884,0.42044,2378.8,2378.7,2.73966]
[1728038156285,0.42044,2378.8,2378.7,2.3192]
[1728038157491,0.42044,2378.8,2378.7,2.73966]
[1728038157891,0.42043,2378.9,2378.7,2.73966]
[1728038158089,0.42043,2378.9,2378.8,0.4291]
[1728038158290,4.01931,2379.0,2378.8,0.4291]
[1728038158596,0.42037,2379.2,2379.0,0.4204]
[1728038158898,0.42037,2379.2,2379.1,2.3149]
[1728038159799,0.42037,2379.2,2379.1,0.8049]
[1728038161692,0.42037,2379.2,2379.1,2.3149]
[1728038163400,1.2117,2379.4,2379.2,0.42036]
[1728038163698,1.63205,2379.4,2379.2,1.93036]
[1728038163889,1.63205,2379.4,2379.2,2.34796]
[1728038165000,0.42035,2379.3,2379.2,1.9276]
[1728038165194,1.63204,2379.4,2379.2,2.34796]
[1728038166694,1.63204,2379.4,2379.2,2.34797]
[1728038169088,0.84794,2379.4,2379.2,2.34797]
[1728038169594,0.84794,2379.4,2379.2,2.34796]
[1728038170295,0.4276,2379.4,2379.2,1.9276]
[1728038170495,0.4276,2379.4,2379.3,0.42035]
[1728038170889,0.4276,2379.4,2379.2,1.9276]
[1728038171097,0.84795,2379.4,2379.2,1.9276]
[1728038171586,0.84795,2379.4,2379.2,2.34797]
[1728038172300,2.3157,2379.7,2379.2,6.1308]
[1728038172301,0.8057,2379.7,2379.2,6.1308]
[1728038172599,3.3058,2379.9,2379.6,0.4203]
[1728038172600,0.42027,2379.8,2379.6,0.4203]
[1728038172793,0.42027,2379.8,2379.7,1.51]
[1728038172997,0.42027,2379.8,2379.7,1.8967]
[1728038173995,0.3911,2379.9,2379.8,0.42026]
[1728038174297,0.098,2380.4,2379.8,4.2016]
[1728038174492,0.81128,2380.3,2380.1,0.4202]
[1728038174691,0.81128,2380.3,2380.2,1.8967]
[1728038184304,0.3911,2380.3,2380.2,1.8967]
[1728038184503,4.5927,2380.3,2380.0,1.51]
[1728038184806,0.42021,2380.1,2380.0,1.51]
[1728038186198,3.2078,2380.2,2379.8,1.51]
[1728038186409,0.8105,2380.0,2379.7,1.9106]
[1728038186605,0.42026,2379.9,2379.7,1.9106]
[1728038186804,0.8105,2380.0,2379.7,1.9106]
[1728038187199,0.42024,2379.9,2379.7,2.33087]
[1728038187406,0.42024,2379.9,2379.8,1.51]
[1728038187915,0.8105,2380.0,2379.8,1.93025]
[1728038188101,0.8105,2380.0,2379.8,1.51]
[1728038188308,0.3947,2380.0,2379.9,0.42024]
[1728038188703,0.3947,2380.0,2379.8,1.93025]
[1728038188914,0.42022,2380.1,2379.9,0.42024]
[1728038189213,0.42022,2380.1,2380.0,2.3201]
[1728038190106,0.42022,2380.1,2380.0,2.7122]
[1728038192416,3.6051,2380.2,2380.0,2.7122]
[1728038192714,3.2078,2380.5,2380.1,4.2016]
[1728038192913,4.67887,2380.5,2380.2,1.51]
[1728038193117,0.42017,2380.3,2380.2,1.51]
[1728038193417,0.42021,2380.1,2380.0,2.7122]
[1728038193612,0.8135,2380.2,2380.0,2.7122]
[1728038193919,0.8135,2380.2,2380.0,3.13242]
[1728038194117,0.3933,2380.2,2380.0,2.7122]
[1728038194313,0.42021,2380.1,2380.0,2.7122]
[1728038194513,0.42021,2380.1,2380.0,1.2022]
[1728038194708,0.42021,2380.1,2380.0,2.7122]
[1728038195715,4.0213,2380.2,2380.0,2.7122]
[1728038196911,3.6011,2380.2,2380.0,2.7122]
[1728038197111,0.42021,2380.1,2380.0,1.51]
[1728038197618,0.84521,2380.1,2380.0,1.51]
[1728038197813,0.42026,2379.8,2379.7,1.2582]
[1728038201409,0.42026,2379.8,2379.7,2.7682]
[1728038203317,0.83886,2379.9,2379.7,2.7682]
[1728038203516,0.83886,2379.9,2379.7,3.18848]
[1728038203823,0.42026,2379.8,2379.7,2.7682]
[1728038209223,0.42025,2379.9,2379.7,3.18846]
[1728038209535,1.05053,2380.1,2379.7,3.18848]
[1728038209823,0.81603,2380.0,2379.9,1.51]
[1728038210015,0.42026,2379.8,2379.7,1.2582]
[1728038210216,0.42026,2379.8,2379.7,2.7682]
[1728038211422,0.42026,2379.8,2379.7,2.3415]
[1728038211721,0.42028,2379.7,2379.6,1.51]
[1728038211920,0.82988,2379.7,2379.6,1.51]
[1728038218827,0.4096,2379.7,2379.2,3.3058]
[1728038219028,0.42031,2379.5,2379.3,0.82004]
[1728038219218,0.42031,2379.5,2379.4,1.51]
[1728038220222,0.42031,2379.5,2379.4,1.93033]
[1728038220920,0.42031,2379.5,2379.4,1.51]
[1728038221431,0.42033,2379.4,2379.3,1.9097]
[1728038221731,0.42033,2379.4,2379.3,0.82005]
[1728038221931,0.42033,2379.4,2379.3,2.33005]
[1728038222124,3.2078,2379.5,2379.3,2.33005]
[1728038222330,3.2078,2379.5,2379.3,1.9097]
[1728038222526,3.2078,2379.5,2379.4,0.42033]
[1728038222527,0.42032,2379.5,2379.4,0.42033]
[1728038222731,4.2585,2379.8,2379.3,1.9097]
[1728038223027,0.42031,2379.6,2379.4,0.42032]
[1728038223230,0.42031,2379.6,2379.5,1.51]
[1728038223824,4.2585,2379.8,2379.5,1.51]
[1728038223825,3.2078,2379.8,2379.5,1.51]
[1728038224033,3.62806,2379.8,2379.7,1.51]
[1728038224329,0.42026,2379.8,2379.7,1.51]
[1728038224535,0.42025,2379.9,2379.7,2.3338]
[1728038224744,0.42025,2379.9,2379.8,1.51]
[1728038225038,0.4211,2380.0,2379.8,1.51]
[1728038225341,0.42024,2379.9,2379.8,1.51]
[1728038225523,3.2078,2380.1,2379.8,1.93026]
[1728038225841,0.42022,2380.1,2380.0,1.51]
[1728038226434,0.42023,2380.0,2379.8,0.42025]
[1728038226630,0.42023,2380.0,2379.9,1.51]
[1728038230938,0.42024,2379.9,2379.8,1.51]
[1728038231128,0.42032,2379.5,2379.4,0.42032]
[1728038231332,0.42032,2379.5,2379.4,2.7288]
[1728038231729,4.25846,2379.8,2379.4,2.7288]
[1728038231942,3.62806,2379.8,2379.7,1.51]
[1728038232930,0.42026,2379.8,2379.7,1.51]
[1728038233136,0.42026,2379.8,2379.7,1.9299]
[1728038238045,0.42026,2379.8,2379.7,2.35018]
[1728038238243,0.84696,2379.8,2379.7,2.35018]
[1728038238850,0.84696,2379.8,2379.7,1.9299]
[1728038241447,1.074,2380.0,2379.8,0.42024]
[1728038241650,1.4735,2380.0,2379.9,1.51]
[1728038241948,0.42023,2380.0,2379.9,1.93024]
[1728038242139,0.3952,2380.2,2380.1,0.42021]
[1728038242346,0.42019,2380.3,2380.2,1.93019]
[1728038242849,3.603,2380.4,2380.2,1.51]
[1728038243044,0.42017,2380.3,2380.2,1.51]
[1728038243543,3.603,2380.4,2380.0,0.42021]
[1728038243544,0.42021,2380.1,2380.0,0.42021]
[1728038243845,0.42021,2380.1,2380.0,0.42022]
[1728038244046,0.42021,2380.1,2380.0,1.51]
[1728038244351,0.4202,2380.2,2380.0,1.93023]
[1728038244546,0.4202,2380.2,2380.1,1.51]
[1728038244750,0.4202,2380.2,2380.1,1.93021]
[1728038245142,0.42019,2380.3,2380.1,1.9302]
[1728038245348,0.42019,2380.3,2380.2,1.51]
[1728038249750,3.603,2380.4,2380.3,11.60428729]
[1728038250054,4.02316,2380.4,2380.3,11.60428729]
[1728038250743,0.4051,2380.5,2380.4,6.53066729]
[1728038250944,15.80902083,2380.5,2380.4,2.29124821]
[1728038251143,15.80902083,2380.5,2379.9,0.098]
[1728038251144,15.38888083,2380.5,2379.9,0.098]
[1728038251446,0.42026,2379.8,2379.7,0.51828]
[1728038251652,0.42026,2379.8,2379.7,1.93028]
[1728038252548,0.42026,2379.8,2379.7,1.51]
[1728038253151,0.42026,2379.8,2379.7,1.93028]
[1728038253350,0.42026,2379.8,2379.7,1.51]
[1728038254154,0.42026,2379.8,2379.7,1.93028]
[1728038254444,0.42026,2379.9,2379.8,0.42026]
[1728038254645,0.42023,2380.0,2379.9,0.42024]
[1728038254850,2.12352,2380.2,2379.8,1.51]
[1728038255051,0.42019,2380.2,2380.1,1.51]
[1728038258247,0.42019,2380.2,2380.1,1.9022]
[1728038259048,0.3992,2380.3,2380.0,0.4053]
[1728038259249,0.3992,2380.3,2379.8,2.32245]
[1728038259250,1.05056,2380.1,2379.8,2.32245]
[1728038259449,0.42024,2379.9,2379.8,2.32245]
[1728038259651,0.42024,2379.9,2379.8,2.71455]
[1728038260054,0.42024,2379.9,2379.8,3.14365]
[1728038261954,0.42024,2380.0,2379.9,0.42024]
[1728038262157,0.42024,2380.0,2379.9,1.93024]
[1728038263856,0.42024,2380.0,2379.9,1.51]
[1728038264357,0.42024,2380.0,2379.9,1.93024]
[1728038265466,0.42024,2380.0,2379.9,1.51]
[1728038268763,0.42024,2380.0,2379.9,1.93024]
[1728038269260,0.42024,2380.0,2379.9,1.51]
[1728038269658,0.42024,2380.0,2379.9,1.93024]
[1728038270958,0.42021,2380.1,2380.0,0.42021]
[1728038273061,0.4202,2380.2,2380.1,0.4202]
[1728038275155,0.3992,2380.3,2380.2,0.42017]
[1728038275156,0.42018,2380.3,2380.2,0.42017]
[1728038275355,4.2798,2380.5,2380.3,0.42017]
[1728038275356,0.42017,2380.4,2380.3,0.42017]
[1728038275561,0.42017,2380.4,2380.3,1.93017]
[1728038275753,0.42017,2380.3,2380.2,1.2065]
[1728038275954,0.42017,2380.3,2380.2,0.3967]
[1728038276354,0.42017,2380.3,2380.2,0.81689]
[1728038276561,0.42017,2380.3,2380.2,1.20469]
[1728038277264,0.42017,2380.3,2380.2,0.7845]
[1728038278967,0.42017,2380.3,2380.2,1.20469]